fUSD/lending_fUSD_20240820
["ID","MTS","AMOUNT","RATE_DAILY","PERIOD"]
[335392315,1724181032393,-653.64489815,0.00013086,2]
[335392316,1724181032402,-155.0,0.00013086,2]
[335392317,1724181032411,-160.0680519,0.00013086,2]
[335392318,1724181032421,-155.0,0.00013292,2]
[335392319,1724181032430,-485.18668102,0.00013292,2]
[335392320,1724181032439,-282.72505867,0.00013292,2]
[335392322,1724181032448,-347.69615481,0.00013292,2]
[335392324,1724181032458,-155.0,0.00013292,2]
[335392326,1724181032467,-155.28545555,0.00013332,2]
[335392328,1724181032477,-215.2327978,0.00013332,2]
[335392331,1724181032486,-155.0,0.00013332,2]
[335392333,1724181032496,-155.0,0.00013332,2]
[335392335,1724181032505,-440.08291615,0.00013333,2]
[335392336,1724181032514,-150.97,0.00013429,2]
[335392337,1724181032524,-385.79849517,0.0001357,2]
[335392338,1724181032677,-412.20150483,0.0001357,2]
[335392339,1724181032686,-260.1248,0.00013598,2]
[335392340,1724181032695,-218.81394517,0.00013598,2]
[335392345,1724181038027,-1739.57017204,0.00011999,2]
[335392347,1724181038036,-160.0,0.00013086,2]
[335392349,1724181038045,-218.91005949,0.00013332,2]
[335392351,1724181038057,-375.36451109,0.00013426,2]
[335392352,1724181038067,-411.8166782,0.00013491,2]
[335392353,1724181038077,-2304.93897917,0.00013598,2]
[335392354,1724181038091,-1261.86277566,0.00013598,2]
[335392355,1724181038100,-5095.2996,0.00013599,2]
[335392356,1724181038110,-904.9556,0.00013599,2]
[335392357,1724181038121,-33063.9956,0.00013599,2]
[335392358,1724181038131,-500.0,0.00013599,2]
[335392359,1724181038143,-605.13643,0.0001366,2]
[335392360,1724181038153,-13527.98954716,0.00013698,2]
[335392361,1724181038163,-33047.1214,0.00013698,2]
[335392362,1724181038173,-200.0,0.00013699,2]
[335392363,1724181038183,-176.15,0.00013699,2]
[335392364,1724181038193,-2751.0,0.00013699,2]
[335392365,1724181038202,-615.6604356,0.00013699,2]
[335392366,1724181038211,-500.0,0.00013699,2]
[335392367,1724181038220,-500.0,0.00013699,2]
[335392368,1724181038230,-500.0,0.00013699,2]
[335392369,1724181038239,-500.0,0.00013699,2]
[335392370,1724181038249,-500.0,0.00013699,2]
[335392371,1724181038259,-500.0,0.00013699,2]
[335392372,1724181038269,-500.0,0.00013699,2]
[335392373,1724181038278,-500.0,0.00013699,2]
[335392374,1724181038287,-500.0,0.00013699,2]
[335392375,1724181038298,-500.0,0.00013699,2]
[335392376,1724181038307,-1294.704,0.00013699,2]
[335392377,1724181038316,-798.0,0.0001371,2]
[335392379,1724181038326,-6815.3174,0.0001378,2]
[335392381,1724181038335,-32656.7238,0.0001378,2]
[335392383,1724181038346,-500.0,0.00013799,2]
[335392385,1724181038356,-500.0,0.00013799,2]
[335392387,1724181038366,-500.0,0.00013799,2]
[335392389,1724181038376,-500.0,0.00013799,2]
[335392391,1724181038386,-500.0,0.00013799,2]
[335392393,1724181038395,-500.0,0.00013799,2]
[335392395,1724181038405,-500.0,0.00013799,2]
[335392397,1724181038415,-500.0,0.00013799,2]
[335392399,1724181038425,-500.0,0.00013799,2]
[335392401,1724181038435,-500.0,0.00013799,2]
[335392404,1724181038446,-500.0,0.00013799,2]
[335392406,1724181038456,-500.0,0.00013799,2]
[335392408,1724181038466,-500.0,0.00013799,2]
[335392409,1724181038475,-150.0,0.000138,2]
[335392411,1724181038484,-759.89357694,0.00013812,2]
[335392415,1724181038512,-708.67760757,0.00013795,2]
[335392417,1724181038521,-332.48158656,0.00013812,2]
[335392419,1724181038530,-798.0,0.0001385,2]
[335392421,1724181038540,-500.0,0.00013868,2]
[335392423,1724181038550,-274.89442741,0.00013868,2]
[335392426,1724181038563,-54.40554151,0.00013868,2]
[335392428,1724181038574,-412.55976848,0.0001387,2]
[335392430,1724181038586,-114.58363152,0.0001387,2]
[335392432,1724181038595,-304.16311538,0.00013871,2]
[335392434,1724181038605,-23.50103176,0.00013878,2]
[335392623,1724181040548,-155.0,0.00011127,2]
[335392625,1724181040558,-155.0,0.00013086,2]
[335392627,1724181040567,-160.92495855,0.00013878,2]
[335392629,1724181040576,-500.0,0.00013878,2]
[335392631,1724181040586,-500.0,0.00013879,2]
[335392633,1724181040596,-500.0,0.00013879,2]
[335392635,1724181040607,-285.40650403,0.00013879,2]
[335392638,1724181040619,-214.59349597,0.00013879,2]
[335392640,1724181040628,-260.02751903,0.00013879,2]
[335392642,1724181040641,-294.76248097,0.00013879,2]
[335392644,1724181040650,-500.0,0.00013879,2]
[335392646,1724181040660,-500.0,0.00013879,2]
[335392648,1724181040670,-1144.38566565,0.0001388,2]
[335392650,1724181040681,-552.33090042,0.0001388,2]
[335392653,1724181040693,-348.33,0.0001388,2]
[335392655,1724181040704,-667.4499999,0.0001388,2]
[335392657,1724181040716,-265.321644,0.0001388,2]
[335392659,1724181040729,-24518.16648327,0.0001388,2]
[335392661,1724181040739,-832.97,0.0001388,2]
[335392663,1724181040748,-26608.5408526,0.0001388,3]
[335392665,1724181040758,-500.0,0.00013888,2]
[335392668,1724181040768,-361.80548429,0.00013888,2]
[335392669,1724181040777,-566.8,0.00013888,2]
[335392671,1724181040786,-911.24,0.00013888,2]
[335392673,1724181040795,-500.0,0.00013888,2]
[335392675,1724181040805,-500.0,0.00013888,2]
[335392677,1724181040815,-500.0,0.00013888,2]
[335392679,1724181040824,-500.0,0.00013888,2]
[335392681,1724181040834,-500.0,0.00013888,2]
[335392683,1724181040843,-930.1,0.00013888,2]
[335392685,1724181040853,-1107.66,0.00013888,2]
[335392687,1724181040862,-1137.77,0.00013888,2]
[335392689,1724181040873,-500.0,0.00013888,2]
[335392691,1724181040885,-500.0,0.00013888,2]
[335392693,1724181040896,-732.4,0.00013888,2]
[335392695,1724181040905,-500.0,0.00013888,2]
[335392697,1724181040915,-500.0,0.00013888,2]
[335392699,1724181040925,-1917.39,0.00013888,2]
[335392701,1724181040934,-2531.57,0.00013888,2]
[335392703,1724181040943,-500.0,0.00013888,2]
[335392705,1724181040952,-500.0,0.00013888,2]
[335392707,1724181040962,-1148.78,0.00013888,2]
[335392709,1724181040971,-500.0,0.00013888,2]
[335392711,1724181040981,-500.0,0.00013888,2]
[335392713,1724181040990,-500.0,0.00013888,2]
[335392715,1724181041000,-500.0,0.00013889,2]
[335392717,1724181041009,-852.08,0.00013889,2]
[335392719,1724181041020,-500.0,0.00013889,2]
[335392721,1724181041029,-205.0,0.0001389,2]
[335392723,1724181041038,-252.0,0.0001389,2]
[335392725,1724181041047,-53217.0817053,0.0001389,3]
[335392727,1724181041058,-5274.0174962,0.00013895,2]
[335392729,1724181041070,-500.0,0.00013899,2]
[335392731,1724181041079,-500.0,0.00013899,2]
[335392733,1724181041089,-500.0,0.00013899,2]
[335392735,1724181041098,-500.0,0.00013899,2]
[335392737,1724181041110,-500.0,0.00013899,2]
[335392739,1724181041120,-500.0,0.00013899,2]
[335392741,1724181041129,-300.68631039,0.00013899,2]
[335392744,1724181041148,-500.0,0.00013899,2]
[335392746,1724181041160,-554.79,0.00013899,2]
[335392749,1724181041170,-408.47868897,0.00013899,2]
[335392751,1724181041180,-500.0,0.00013899,2]
[335392753,1724181041191,-500.0,0.00013899,2]
[335392755,1724181041202,-339.43729943,0.00013899,2]
[335392757,1724181041211,-2000.0,0.000139,2]
[335392759,1724181041221,-150.0,0.000139,2]
[335392761,1724181041231,-151.0,0.000139,2]
[335392763,1724181041242,-4928.65,0.000139,31]
[335392765,1724181041252,-4928.65,0.000139,31]
[335392767,1724181041261,-4928.65,0.000139,31]
[335392769,1724181041271,-4928.65,0.000139,31]
[335392771,1724181041280,-4928.65,0.000139,31]
[335392773,1724181041291,-4928.65,0.000139,31]
[335392775,1724181041301,-4928.65,0.000139,31]
[335392778,1724181041311,-4928.65,0.000139,31]
[335392780,1724181041322,-4928.65,0.000139,31]
[335392782,1724181041331,-4928.65,0.000139,31]
[335392784,1724181041342,-4928.65,0.000139,31]
[335392786,1724181041352,-4928.65,0.000139,31]
[335392788,1724181041361,-4928.65,0.000139,31]
[335392790,1724181041370,-4928.65,0.000139,31]
[335392792,1724181041381,-4928.65,0.000139,31]
[335392794,1724181041391,-4928.65,0.000139,31]
[335392796,1724181041400,-151.0,0.000139,2]
[335392798,1724181041409,-151.0,0.000139,2]
[335392799,1724181041419,-151.0,0.000139,2]
[335392801,1724181041428,-151.0,0.000139,2]
[335392803,1724181041438,-151.0,0.000139,2]
[335392805,1724181041447,-151.0,0.000139,2]
[335392807,1724181041457,-151.0,0.000139,2]
[335392809,1724181041467,-874.4887855,0.00013904,2]
[335392811,1724181041476,-151.0,0.00013904,2]
[335392813,1724181041486,-160.252904,0.00013904,2]
[335392815,1724181041495,-151.0,0.00013904,2]
[335392817,1724181041504,-151.0,0.00013904,2]
[335392819,1724181041514,-151.0,0.00013904,2]
[335392821,1724181041523,-472.01,0.00013914,2]
[335392823,1724181041532,-26608.5408526,0.0001397,3]
[335392825,1724181041542,-500.0,0.00013979,2]
[335392827,1724181041553,-566.8,0.00013979,2]
[335392829,1724181041563,-911.24,0.00013979,2]
[335392831,1724181041573,-500.0,0.00013979,2]
[335392833,1724181041582,-500.0,0.00013979,2]
[335392835,1724181041591,-500.0,0.00013979,2]
[335392837,1724181041601,-500.0,0.00013979,2]
[335392838,1724181041610,-500.0,0.00013979,2]
[335392840,1724181041619,-930.1,0.00013979,2]
[335392842,1724181041628,-1107.66,0.00013979,2]
[335392844,1724181041638,-1137.77,0.00013979,2]
[335392846,1724181041647,-505.70802078,0.00013979,2]
[335392848,1724181041656,-500.0,0.00013979,2]
[335392850,1724181041666,-732.4,0.00013979,2]
[335392852,1724181041676,-500.0,0.00013979,2]
[335392854,1724181041685,-500.0,0.00013979,2]
[335392857,1724181041696,-1917.39,0.00013979,2]
[335392859,1724181041706,-2531.57,0.00013979,2]
[335392861,1724181041717,-500.0,0.00013979,2]
[335392863,1724181041727,-500.0,0.00013979,2]
[335392865,1724181041736,-1148.78,0.00013979,2]
[335392867,1724181041745,-481.05260777,0.00013979,2]
[335392868,1724181041754,-500.0,0.00013979,2]
[335392869,1724181041764,-500.0,0.00013979,2]
[335392870,1724181041774,-832.97,0.00013979,2]
[335392871,1724181041783,-151.0,0.0001398,2]
[335392872,1724181041792,-263.571328,0.0001398,2]
[335392873,1724181041804,-151.0,0.0001398,2]
[335392874,1724181041814,-151.0,0.0001398,2]
[335392875,1724181041823,-26608.5408526,0.0001398,3]
[335392876,1724181041833,-852.08,0.00013988,2]
[335392878,1724181041843,-500.0,0.00013988,2]
[335392880,1724181041853,-11129.31031615,0.0001399,2]
[335392882,1724181041862,-151.0,0.0001399,2]
[335392884,1724181041872,-151.0,0.0001399,2]
[335392886,1724181041881,-151.0,0.0001399,2]
[335392888,1724181041891,-151.0,0.0001399,2]
[335392891,1724181041902,-798.0,0.0001399,2]
[335392893,1724181041912,-631.05421125,0.0001399,2]
[335392895,1724181041921,-1000.0,0.00013999,3]
[335392897,1724181041931,-29924.54677825,0.00014,4]
[335392899,1724181041941,-900.0,0.00014,5]
[335392901,1724181041951,-538.0341324,0.00014,2]
[335392902,1724181041960,-151.0,0.00014,2]
[335392904,1724181041969,-150.0,0.00014,2]
[335392906,1724181041978,-151.0,0.00014,2]
[335392909,1724181041988,-177.041118,0.00014,2]
[335392910,1724181041997,-151.0,0.00014,2]
[335392913,1724181042006,-151.0,0.00014,2]
[335392914,1724181042015,-150.0,0.00014056,2]
[335392916,1724181042024,-150.0,0.00014056,2]
[335392918,1724181042034,-150.0,0.00014056,2]
[335392920,1724181042043,-246.29,0.00014119,2]
[335392922,1724181042054,-798.0,0.0001413,2]
[335392924,1724181042066,-605.13644,0.0001418,2]
[335392926,1724181042075,-1000.0,0.00014225,2]
[335392928,1724181042085,-306.087266,0.00014247,2]
[335392930,1724181042094,-798.0,0.0001427,2]
[335392932,1724181042103,-150.0,0.000143,2]
[335392934,1724181042113,-153.71,0.0001433,2]
[335392936,1724181042122,-798.0,0.0001441,2]
[335392938,1724181042132,-7500.0,0.0001448,2]
[335392939,1724181042143,-157.10906008,0.0001449,2]
[335392941,1724181042153,-796.93067026,0.00014509,2]
[335392943,1724181042163,-26608.5408526,0.0001456,3]
[335392945,1724181042172,-28963.2115243,0.0001456,3]
[335392947,1724181042181,-379.07118112,0.00014568,2]
[335392949,1724181042190,-151.0,0.00014568,2]
[335392951,1724181042199,-151.0,0.00014568,2]
[335392953,1724181042209,-151.0,0.00014568,2]
[335392955,1724181042218,-26608.5408526,0.00014569,3]
[335392957,1724181042229,-28963.2115243,0.00014569,3]
[335392959,1724181042239,-151.0,0.0001457,2]
[335392961,1724181042247,-151.0,0.0001457,2]
[335392963,1724181042256,-151.0,0.0001457,2]
[335392965,1724181042265,-151.0,0.0001457,2]
[335392967,1724181042274,-151.0,0.0001457,2]
[335392969,1724181042283,-151.0,0.0001457,2]
[335392971,1724181042292,-832.97,0.0001457,2]
[335392973,1724181042302,-151.0,0.0001457,2]
[335392975,1724181042311,-79825.6225579,0.0001457,3]
[335392977,1724181042321,-86889.6345728,0.0001457,3]
[335392979,1724181042330,-151.0,0.00014575,2]
[335392981,1724181042339,-13527.98954715,0.00014575,2]
[335392983,1724181042348,-151.0,0.00014579,2]
[335392985,1724181042357,-294.09153,0.0001458,2]
[335392987,1724181042365,-151.0,0.0001458,2]
[335392989,1724181042374,-151.0,0.0001458,2]
[335392991,1724181042383,-151.0,0.0001458,2]
[335392993,1724181042392,-151.0,0.0001458,2]
[335392995,1724181042401,-151.0,0.0001458,2]
[335392997,1724181042410,-151.0,0.0001458,2]
[335392999,1724181042419,-151.0,0.0001458,2]
[335393000,1724181042427,-554.79,0.0001458,2]
[335393002,1724181042436,-151.0,0.0001458,2]
[335393004,1724181042445,-500.0,0.0001458,2]
[335393006,1724181042454,-500.0,0.0001458,2]
[335393008,1724181042463,-151.0,0.0001458,2]
[335393010,1724181042472,-151.0,0.0001458,2]
[335393012,1724181042481,-151.0,0.0001458,2]
[335393014,1724181042491,-151.0,0.0001458,2]
[335393016,1724181042500,-832.97,0.0001458,2]
[335393018,1724181042509,-151.0,0.0001458,2]
[335393020,1724181042518,-133042.704263,0.0001458,3]
[335393022,1724181042526,-52542.76897936,0.0001458,3]
[335393024,1724181042540,-3895.58825898,0.0001458,3]
[335393027,1724181042552,-505.70801162,0.0001458,3]
[335393029,1724181042563,-4818.01427643,0.0001458,3]
[335393031,1724181042575,-711.3485025,0.0001458,3]
[335393033,1724181042587,-356.19588052,0.0001458,3]
[335393035,1724181042597,-682.60523184,0.0001458,3]
[335393038,1724181042608,-2988.78326536,0.0001458,3]
[335393040,1724181042619,-7583.60000003,0.0001458,3]
[335393042,1724181042630,-4669.46880001,0.0001458,3]
[335393044,1724181042641,-1486.46443087,0.0001458,3]
[335393046,1724181042652,-432.9,0.0001458,3]
[335393105,1724181043132,-151.0,0.00013904,2]
[335393107,1724181043145,-151.0,0.00014,2]
[335393109,1724181043155,-151.0,0.00014568,2]
[335393111,1724181043165,-151.0,0.0001457,2]
[335393113,1724181043175,-151.0,0.0001458,2]
[335393115,1724181043184,-5594.60326,0.0001458,3]
[335393117,1724181043195,-544.7642207,0.0001458,3]
[335393119,1724181043206,-530.05992504,0.0001458,3]
[335393121,1724181043218,-9394.98905518,0.0001458,3]
[335393123,1724181043230,-301.7919484,0.0001458,3]
[335393126,1724181043242,-18813.19205016,0.0001458,3]
[335393127,1724181043251,-500.0,0.00014589,2]
[335393129,1724181043261,-566.8,0.00014589,2]
[335393131,1724181043271,-911.24,0.00014589,2]
[335393133,1724181043281,-500.0,0.00014589,2]
[335393135,1724181043290,-500.0,0.00014589,2]
[335393137,1724181043302,-500.0,0.00014589,2]
[335393139,1724181043313,-500.0,0.00014589,2]
[335393141,1724181043322,-930.1,0.00014589,2]
[335393143,1724181043332,-1107.66,0.00014589,2]
[335393145,1724181043342,-1137.77,0.00014589,2]
[335393147,1724181043352,-500.0,0.00014589,2]
[335393149,1724181043361,-732.4,0.00014589,2]
[335393151,1724181043370,-852.08,0.00014589,2]
[335393153,1724181043379,-500.0,0.00014589,2]
[335393155,1724181043388,-500.0,0.00014589,2]
[335393157,1724181043397,-1917.39,0.00014589,2]
[335393159,1724181043407,-554.79,0.00014589,2]
[335393161,1724181043416,-2531.57,0.00014589,2]
[335393163,1724181043426,-500.0,0.00014589,2]
[335393165,1724181043436,-500.0,0.00014589,2]
[335393167,1724181043445,-242.54951823,0.00014589,2]
[335393169,1724181043455,-500.0,0.00014589,2]
[335393171,1724181043465,-1148.78,0.00014589,2]
[335393173,1724181043475,-500.0,0.00014589,2]
[335393175,1724181043484,-500.0,0.00014589,2]
[335393177,1724181043494,-500.0,0.00014589,2]
[335393179,1724181043504,-832.97,0.00014589,2]
[335393181,1724181043513,-151.0,0.0001459,2]
[335393183,1724181043523,-151.0,0.0001459,2]
[335393185,1724181043532,-151.0,0.0001459,2]
[335393187,1724181043542,-151.0,0.0001459,2]
[335393189,1724181043553,-151.0,0.0001459,2]
[335393191,1724181043563,-151.0,0.0001459,2]
[335393193,1724181043572,-16783.45868536,0.0001459,3]
[335393195,1724181043583,-2179.86755184,0.0001459,3]
[335393197,1724181043595,-8739.00278943,0.0001459,3]
[335393200,1724181043607,-7164.35167377,0.0001459,3]
[335393203,1724181043618,-454.54387189,0.0001459,3]
[335393207,1724181043630,-3162.86236937,0.0001459,3]
[335393210,1724181043641,-1668.02297108,0.0001459,3]
[335393289,1724181044495,-571.48088153,0.0001459,3]
[335393291,1724181044506,-579.35,0.0001459,3]
[335393293,1724181044517,-373.5132,0.0001459,3]
[335393296,1724181044529,-489.18296135,0.0001459,3]
[335393298,1724181044540,-362.76485203,0.0001459,3]
[335393300,1724181044551,-5958.007393,0.0001459,3]
[335393302,1724181044561,-1267.53629767,0.0001459,3]
[335393304,1724181044573,-705.64297035,0.0001459,3]
[335393307,1724181044595,-151.0,0.00013904,2]
[335393309,1724181044605,-182.138261,0.00014575,2]
[335393311,1724181044614,-1580.46240679,0.0001459,3]
[335393313,1724181044626,-54394.11253554,0.0001459,3]
[335393315,1724181044635,-86889.6345728,0.0001459,3]
[335393317,1724181044645,-151.0,0.0001459,2]
[335393319,1724181044654,-151.0,0.0001459,2]
[335393321,1724181044663,-151.0,0.0001459,2]
[335393323,1724181044673,-150.189748,0.00014594,3]
[335393325,1724181044683,-437.91546352,0.00014599,2]
[335393327,1724181044692,-450.66681784,0.00014599,2]
[335393329,1724181044702,-500.0,0.00014599,2]
[335393330,1724181044711,-566.8,0.00014599,2]
[335393332,1724181044720,-911.24,0.00014599,2]
[335393334,1724181044730,-500.0,0.00014599,2]
[335393336,1724181044739,-500.0,0.00014599,2]
[335393338,1724181044749,-500.0,0.00014599,2]
[335393340,1724181044759,-500.0,0.00014599,2]
[335393342,1724181044768,-500.0,0.00014599,2]
[335393344,1724181044777,-930.1,0.00014599,2]
[335393346,1724181044786,-1107.66,0.00014599,2]
[335393348,1724181044795,-1137.77,0.00014599,2]
[335393350,1724181044806,-500.0,0.00014599,2]
[335393352,1724181044815,-732.4,0.00014599,2]
[335393353,1724181044825,-852.08,0.00014599,2]
[335393355,1724181044834,-500.0,0.00014599,2]
[335393357,1724181044844,-500.0,0.00014599,2]
[335393359,1724181044854,-1917.39,0.00014599,2]
[335393361,1724181044864,-554.79,0.00014599,2]
[335393363,1724181044874,-2531.57,0.00014599,2]
[335393365,1724181044883,-500.0,0.00014599,2]
[335393367,1724181044894,-500.0,0.00014599,2]
[335393369,1724181044903,-500.0,0.00014599,2]
[335393371,1724181044912,-1148.78,0.00014599,2]
[335393373,1724181044921,-500.0,0.00014599,2]
[335393375,1724181044931,-500.0,0.00014599,2]
[335393377,1724181044941,-500.0,0.00014599,2]
[335393379,1724181044950,-832.97,0.00014599,2]
[335393381,1724181044959,-151.0,0.00014599,2]
[335393383,1724181044970,-634.0,0.000146,2]
[335393385,1724181044980,-101558.53578323,0.000146,3]
[335393494,1724181046162,-155.0,0.00013086,2]
[335393496,1724181046172,-151.0,0.00014,2]
[335393498,1724181046181,-26.78,0.00014509,2]
[335393504,1724181046232,-407.37144464,0.00014509,2]
[335393506,1724181046243,-274.52616291,0.00014509,2]
[335393508,1724181046252,-4994.61127258,0.000146,3]
[335393509,1724181046297,-1486.66666005,0.000146,3]
[335393510,1724181046310,-917.77111829,0.000146,3]
[335393511,1724181046323,-1325.98466,0.000146,3]
[335393513,1724181046334,-264.51505205,0.000146,3]
[335393515,1724181046346,-89608.8354538,0.000146,3]
[335393517,1724181046355,-151.0,0.000146,2]
[335393519,1724181046364,-151.0,0.000146,2]
[335393521,1724181046374,-151.0,0.000146,2]
[335393523,1724181046383,-151.0,0.000146,2]
[335393524,1724181046393,-1893.36222601,0.00014681,2]
[335393526,1724181046402,-1100.0,0.000147,5]
[335393528,1724181046412,-261.1055,0.00014717,2]
[335393530,1724181046421,-28963.2115243,0.00014743,3]
[335393532,1724181046430,-304.16311529,0.00014755,2]
[335393534,1724181046439,-150.0,0.000148,2]
[335393536,1724181046448,-2300.0,0.000148,5]
[335393537,1724181046458,-605.13644,0.0001481,2]
[335393538,1724181046467,-150.0,0.00014877,2]
[335393539,1724181046476,-150.0,0.00014877,2]
[335393540,1724181046485,-150.0,0.00014877,2]
[335393541,1724181046494,-150.0,0.00014877,2]
[335393542,1724181046503,-2000.0,0.000149,2]
[335393543,1724181046513,-3400.0,0.000149,5]
[335393544,1724181046522,-26608.5408526,0.00014915,3]
[335393545,1724181046532,-28963.2115243,0.00014915,3]
[335393546,1724181046541,-3228.35089956,0.00014925,3]
[335393547,1724181046552,-14588.4442944,0.00014925,3]
[335393548,1724181046563,-2800.21661438,0.00014925,3]
[335393549,1724181046574,-5991.52904426,0.00014925,3]
[335393550,1724181046583,-1977.24633825,0.00014925,3]
[335393551,1724181046595,-1246.58900404,0.00014925,3]
[335393552,1724181046606,-2733.38035353,0.00014925,3]
[335393553,1724181046617,-5782.3416,0.00014925,3]
[335393554,1724181046628,-508.5,0.00014925,3]
[335393555,1724181046639,-274.68725396,0.00014925,3]
[335393556,1724181046650,-887.22163929,0.00014925,3]
[335393557,1724181046661,-15553.24533523,0.00014925,3]
[335393558,1724181046671,-832.97,0.00014931,2]
[335393559,1724181046680,-500.0,0.00014932,2]
[335393560,1724181046689,-566.8,0.00014932,2]
[335393561,1724181046698,-911.24,0.00014932,2]
[335393562,1724181046708,-463.51368741,0.00014932,2]
[335393563,1724181046719,-36.48631259,0.00014932,2]
[335393564,1724181046728,-500.0,0.00014932,2]
[335393565,1724181046737,-500.0,0.00014932,2]
[335393566,1724181046746,-500.0,0.00014932,2]
[335393567,1724181046755,-930.1,0.00014932,2]
[335393568,1724181046764,-1107.66,0.00014932,2]
[335393569,1724181046773,-1137.77,0.00014932,2]
[335393570,1724181046782,-500.0,0.00014932,2]
[335393571,1724181046792,-732.4,0.00014932,2]
[335393572,1724181046802,-500.0,0.00014932,2]
[335393573,1724181046811,-221.57969995,0.00014932,2]
[335393574,1724181154766,328.4,9.936e-05,2]
[335393576,1724181367903,408.99752465,0.00010993,2]
[335393577,1724181367926,294.17301235,0.00010993,2]
[335393578,1724181369324,6112.8283,0.00010995,2]
[335393579,1724181414867,1299.778443,0.00010993,2]
[335393580,1724181448533,300.13681126,0.00010995,2]
[335393582,1724181565272,961.28364443,0.00010999,2]
[335393583,1724181571300,3940.064486,0.00010999,2]
[335393584,1724181579894,419.23699242,0.00010999,2]
[335393585,1724181583463,348.31851385,0.00010999,2]
[335393586,1724181606625,403.2579673,0.00010999,2]
[335393587,1724181609043,261.29425219,0.00010999,2]
[335393588,1724181610326,407.89764163,0.00010999,2]
[335393589,1724181613301,155.0,0.00010999,2]
[335393591,1724181825309,1050.0,0.0001,2]
[335393592,1724181866305,155.0,0.00010999,2]
[335393593,1724181869847,3891.72993557,0.00010999,2]
[335393594,1724181869869,11591.3775308,0.00010999,2]
[335393595,1724181885415,-258.98016157,0.00011095,2]
[335393596,1724181885440,-500.0,0.00011096,2]
[335393597,1724181885467,-155.0,0.00011127,2]
[335393598,1724181885495,-155.0,0.00011127,2]
[335393599,1724181885526,-291.99350238,0.00011127,2]
[335393600,1724181889905,155.0,0.00010999,2]
[335393601,1724181904579,-1169.14576903,0.00011236,2]
[335393602,1724181904608,-1169.14576902,0.00011267,2]
[335393603,1724181904638,-329.77,0.00011367,2]
[335393604,1724181904683,-4773.7,0.00011854,2]
[335393605,1724181904738,-160.470016,0.00011857,2]
[335393606,1724181904783,-300.0,0.00011998,2]
[335393607,1724181904826,-300.0,0.00011998,2]
[335393608,1724181904878,-1776.794782,0.00011999,2]
[335393609,1724181908192,8408.6224692,0.00011,2]
[335393610,1724181908216,20000.0,0.00011,2]
[335393611,1724181908243,20000.0,0.00011,2]
[335393612,1724181908268,20000.0,0.00011,2]
[335393613,1724181908292,20000.0,0.00011,2]
[335393661,1724182232258,-484.55762474,0.000106,3]
[335393666,1724182232852,-315.44237526,0.000106,3]
[335393667,1724182232862,-1600.0,0.000107,3]
[335393668,1724182232872,-11495.0,0.000107,5]
[335393669,1724182232881,-300.0,0.00010799,2]
[335393670,1724182232891,-300.0,0.00010799,2]
[335393671,1724182232901,-2400.0,0.000108,3]
[335393672,1724182232910,-798.67978384,0.000109,3]
[335393676,1724182238161,-2401.32021616,0.000109,3]
[335393678,1724182238171,-491.95327024,0.000109,2]
[335393680,1724182238180,-165.19422617,0.000109,2]
[335393681,1724182238190,-157.10906008,0.000109,2]
[335393682,1724182238201,-531.50820568,0.000109,2]
[335393683,1724182238210,-1412.72174294,0.000109,2]